bitfinex-derivatives/quotes_BTCF0:USTF0_20210706
["timestamp","ask_amount","ask_price","bid_price","bid_amount"]
[1625588373206,0.77872632,33894.0,33893.0,0.0001]
[1625588373207,1.79137661,33894.0,33893.0,0.0001]
[1625588374288,0.77872632,33894.0,33893.0,0.0001]
[1625588375254,1.7916225,33894.0,33893.0,0.0001]
[1625588375493,0.77872632,33894.0,33893.0,0.0001]
[1625588376336,1.79053903,33894.0,33893.0,0.0001]
[1625588377415,0.77872632,33894.0,33893.0,0.0001]
[1625588378142,0.86742632,33894.0,33893.0,0.0001]
[1625588378496,0.77872632,33894.0,33893.0,0.0001]
[1625588382589,0.72172632,33894.0,33893.0,0.0001]
[1625588382714,0.72172632,33894.0,33893.0,0.3193]
[1625588384503,0.72172632,33894.0,33893.0,0.80045088]
[1625588385886,0.72172632,33894.0,33893.0,0.55987544]
[1625588386487,0.72172632,33894.0,33893.0,0.3193]
[1625588386609,0.72172632,33894.0,33893.0,0.0001]
[1625588390097,0.72172632,33894.0,33890.0,0.00453068]
[1625588390458,0.72172632,33894.0,33893.0,0.24057544]
[1625588391059,0.72172632,33894.0,33893.0,0.24510607]
[1625588392139,0.72172632,33894.0,33893.0,0.00453063]
[1625588392441,0.72172632,33894.0,33890.0,0.00453059]
[1625588392681,0.72172632,33894.0,33893.0,0.00453062]
[1625588392920,0.72172632,33894.0,33890.0,0.00453053]
[1625588393642,0.77872632,33894.0,33890.0,0.00453053]
[1625588393763,1.08677632,33894.0,33890.0,0.00453053]
[1625588394002,1.02977632,33894.0,33890.0,0.00453053]
[1625588396167,1.08677632,33894.0,33890.0,0.00453053]
[1625588396527,0.24057544,33891.0,33890.0,3.053e-05]
[1625588396646,0.29757544,33891.0,33890.0,3.053e-05]
[1625588397007,0.29757544,33891.0,33883.0,0.00452171]
[1625588398510,0.48115088,33884.0,33883.0,0.00452171]
[1625588399772,0.82807088,33884.0,33883.0,0.00452171]
[1625588400614,0.82807088,33884.0,33879.0,0.00453015]
[1625588400854,0.82807088,33884.0,33883.0,0.00453017]
[1625588400974,0.48115088,33884.0,33883.0,0.00453017]
[1625588401095,0.48115088,33884.0,33880.0,0.00453006]
[1625588401335,0.48115088,33884.0,33883.0,0.00453306]
[1625588401576,0.48115088,33884.0,33879.0,0.00453301]
[1625588402538,0.24057544,33880.0,33879.0,0.00453301]
[1625588403438,0.24057544,33880.0,33879.0,1.03629613]
[1625588404042,0.24057544,33880.0,33879.0,0.00453301]
[1625588404582,0.24057544,33880.0,33878.0,1.03638999]
[1625588404827,0.24057544,33880.0,33879.0,0.00453311]
[1625588405365,0.24057544,33880.0,33878.0,0.00453322]
[1625588405486,0.24057544,33880.0,33878.0,1.03722037]
[1625588405846,0.24057544,33880.0,33879.0,0.00453325]
[1625588406689,0.24057544,33887.0,33879.0,0.00453325]
[1625588406809,0.057,33894.0,33879.0,0.00453325]
[1625588406929,0.057,33894.0,33880.0,1.03263129]
[1625588407169,0.057,33894.0,33882.0,1.03259324]
[1625588407471,0.057,33894.0,33883.0,1.03353495]
[1625588407590,0.057,33894.0,33881.0,1.20922503]
[1625588407591,0.057,33894.0,33882.0,1.03354036]
[1625588407710,0.057,33894.0,33883.0,0.00453309]
[1625588408552,0.29757544,33894.0,33893.0,0.48115088]
[1625588408792,0.29757544,33894.0,33893.0,0.74415088]
[1625588408912,0.24057544,33894.0,33893.0,0.74415088]
[1625588409032,0.24057544,33894.0,33893.0,0.74868369]
[1625588409394,0.29757544,33894.0,33893.0,0.74868369]
[1625588410474,0.24057544,33894.0,33893.0,0.74868369]
[1625588414021,0.24057544,33897.0,33893.0,0.74868369]
[1625588414139,1.01334744,33900.0,33893.0,0.74868369]
[1625588414381,1.0138603,33902.0,33894.0,0.00453327]
[1625588414621,1.0138603,33902.0,33901.0,0.72172632]
[1625588414741,1.01464078,33904.0,33901.0,0.96393632]
[1625588414863,1.01464078,33904.0,33901.0,0.96846919]
[1625588414983,1.1837194,33906.0,33901.0,0.96846919]
[1625588414984,1.01536736,33906.0,33901.0,0.96846919]
[1625588415160,1.01536736,33906.0,33902.0,0.00453276]
[1625588415523,1.0175818,33905.0,33902.0,0.00453276]
[1625588416544,0.057,33904.0,33902.0,0.00453276]
[1625588416664,1.24508595,33904.0,33902.0,0.00453276]
[1625588416784,0.057,33902.0,33901.0,0.72172632]
[1625588416905,1.07557335,33902.0,33901.0,0.72172632]
[1625588417085,1.01857335,33902.0,33901.0,0.72172632]
[1625588417205,2.20703982,33902.0,33901.0,0.72172632]
[1625588417568,2.20703982,33902.0,33901.0,0.72625485]
[1625588417690,1.01857335,33902.0,33901.0,0.72625485]
[1625588417810,1.01857335,33902.0,33901.0,0.72172632]
[1625588418170,1.01857335,33902.0,33901.0,0.72625473]
[1625588418771,1.01887519,33903.0,33901.0,0.72625473]
[1625588418890,1.01887519,33903.0,33901.0,1.06816473]
[1625588419252,2.2056164,33902.0,33901.0,1.06363632]
[1625588420756,2.88378855,33902.0,33901.0,1.06363632]
[1625588422438,1.696162,33902.0,33901.0,1.75691684]
[1625588424243,1.696162,33902.0,33901.0,1.06363632]
[1625588424540,1.696162,33902.0,33901.0,1.75678376]
[1625588425320,1.696162,33902.0,33901.0,1.06363632]
[1625588427304,1.753162,33902.0,33901.0,1.06363632]
[1625588427727,2.9421442,33902.0,33901.0,1.06363632]
[1625588427970,4.30067284,33902.0,33901.0,1.06363632]
[1625588428329,4.30067284,33902.0,33901.0,0.72172632]
[1625588429170,4.64886284,33902.0,33901.0,0.72172632]
[1625588429299,6.17214635,33902.0,33901.0,0.72172632]
[1625588429529,10.01414635,33902.0,33901.0,0.72172632]
[1625588430616,10.02790579,33902.0,33901.0,0.72172632]
[1625588431215,10.53556241,33902.0,33901.0,0.72172632]
[1625588432238,10.62376241,33902.0,33892.0,1.21276674]
[1625588432476,5.13123274,33893.0,33888.0,1.2130065]
[1625588432716,5.13123274,33893.0,33887.0,1.03971986]
[1625588432717,2.67714705,33889.0,33887.0,0.51987582]
[1625588432838,0.057,33888.0,33887.0,0.51987582]
[1625588432957,2.25195385,33888.0,33886.0,0.51988814]
[1625588433137,2.25195385,33888.0,33885.0,0.76047823]
[1625588433138,2.19504551,33887.0,33885.0,0.76047823]
[1625588433257,0.057,33886.0,33885.0,0.76047823]
[1625588433379,1.46848649,33886.0,33885.0,1.45369127]
[1625588434100,1.41148649,33886.0,33885.0,1.45369127]
[1625588434822,1.41148649,33886.0,33885.0,1.45821032]
[1625588435362,1.46848649,33886.0,33885.0,1.45821032]
[1625588435480,1.46848649,33886.0,33885.0,0.76499728]
[1625588435721,1.46848649,33886.0,33885.0,1.45812034]
[1625588435960,1.46848649,33886.0,33885.0,0.76047823]
[1625588436081,1.41148649,33886.0,33885.0,0.76047823]
[1625588436443,0.22922,33886.0,33885.0,2.49771652]
[1625588436565,1.18271739,33887.0,33885.0,2.49771652]
[1625588436683,1.18271739,33887.0,33886.0,1.21289996]
[1625588437044,1.18271739,33887.0,33886.0,1.21741438]
[1625588437405,0.50725996,33888.0,33886.0,2.25707959]
[1625588437645,1.42418608,33889.0,33887.0,2.25258414]
[1625588437887,0.74789581,33889.0,33888.0,2.25258445]
[1625588438006,0.74789581,33889.0,33888.0,2.53173445]
[1625588438126,0.74789581,33889.0,33888.0,2.53624851]
[1625588438726,0.98847125,33889.0,33888.0,2.53624851]
[1625588438844,0.48115088,33889.0,33888.0,2.53624851]
[1625588439084,0.9884756,33889.0,33888.0,2.53624851]
[1625588439326,1.66486093,33889.0,33888.0,2.53624851]
[1625588439569,0.9884756,33889.0,33888.0,2.53624851]
[1625588439808,1.66502865,33889.0,33888.0,2.53624851]
[1625588439927,1.72202865,33889.0,33888.0,2.53624851]
[1625588440049,1.72202865,33889.0,33888.0,1.21744415]
[1625588440050,2.73658018,33889.0,33888.0,1.21744415]
[1625588440168,2.73658018,33889.0,33888.0,1.21293009]
[1625588440650,2.73658018,33889.0,33888.0,0.51982718]
[1625588440950,3.92060255,33889.0,33887.0,0.51993453]
[1625588441069,4.17791255,33889.0,33887.0,0.51993453]
[1625588441190,3.38219241,33888.0,33885.0,0.76053441]
[1625588441311,0.057,33887.0,33885.0,0.76053441]
[1625588441433,2.20001317,33886.0,33885.0,0.76053441]
[1625588441551,2.25701317,33886.0,33885.0,0.76053441]
[1625588441971,2.25701317,33886.0,33885.0,0.24057544]
[1625588443176,2.25701317,33886.0,33885.0,0.76052497]
[1625588443715,2.25701317,33886.0,33885.0,0.24057544]
[1625588443895,3.44057567,33886.0,33885.0,0.24057544]
[1625588445336,2.25701317,33886.0,33885.0,0.24057544]
[1625588445579,2.25701317,33886.0,33885.0,0.41381987]
[1625588446060,2.25701317,33886.0,33885.0,0.24057544]
[1625588446061,3.43937661,33886.0,33885.0,0.24057544]
[1625588446658,3.43937661,33886.0,33884.0,0.1732493]
[1625588446780,2.25701317,33886.0,33885.0,0.51973147]
[1625588447025,2.25701317,33886.0,33885.0,0.17324693]
[1625588447262,2.25701317,33886.0,33884.0,0.51974078]
[1625588447263,3.44003002,33886.0,33884.0,0.1732487]
[1625588447442,3.67933002,33886.0,33884.0,0.1732487]
[1625588447565,2.25379087,33885.0,33884.0,0.1732487]
[1625588447925,2.23379087,33885.0,33884.0,0.1732487]
[1625588448467,1.21995237,33885.0,33884.0,0.1732487]
[1625588448829,1.46052781,33885.0,33884.0,0.1732487]
[1625588448948,2.47402421,33885.0,33884.0,0.1732487]
[1625588449307,2.41702421,33885.0,33884.0,0.1732487]
[1625588449429,2.47402421,33885.0,33884.0,0.1732487]
[1625588449553,1.46052781,33885.0,33884.0,0.1732487]
[1625588450454,2.47302099,33885.0,33883.0,0.17318852]
[1625588450692,0.50632858,33884.0,33883.0,0.17318852]
[1625588450812,0.56332858,33884.0,33883.0,0.17318852]
[1625588451772,0.56332858,33884.0,33882.0,0.76014099]
[1625588451774,1.57566393,33884.0,33882.0,0.41374255]
[1625588452012,0.50633758,33883.0,33882.0,0.41374255]
[1625588452133,0.56333758,33883.0,33882.0,0.41374255]
[1625588452798,0.80391302,33883.0,33882.0,0.76007934]
[1625588453038,0.80391302,33883.0,33882.0,0.41374366]
[1625588453280,0.80391302,33883.0,33882.0,0.76007261]
[1625588453518,0.80391302,33883.0,33882.0,0.41371437]
[1625588454059,0.80391302,33883.0,33882.0,0.75998828]
[1625588454300,0.80391302,33883.0,33882.0,0.4137136]
[1625588456704,0.80391302,33883.0,33882.0,0.24057544]
[1625588457787,0.80391302,33883.0,33882.0,0.24509019]
[1625588459712,1.81501592,33883.0,33882.0,0.24509019]
[1625588463555,1.81501592,33883.0,33882.0,0.50052019]
[1625588463916,0.80391302,33883.0,33882.0,0.50052019]
[1625588465058,1.13976853,33883.0,33882.0,0.50052019]
[1625588465178,1.08276853,33883.0,33882.0,0.50052019]
[1625588465300,0.74691302,33883.0,33882.0,0.50052019]
[1625588466262,0.74691302,33883.0,33882.0,0.24509019]
[1625588466379,0.80391302,33883.0,33882.0,0.24509019]
[1625588466619,1.07860302,33883.0,33882.0,0.24509019]
[1625588466739,2.08144389,33883.0,33882.0,0.24509019]
[1625588466980,1.07860302,33883.0,33882.0,0.24509019]
[1625588469264,1.02160302,33883.0,33882.0,0.24509019]
[1625588469384,0.74691302,33883.0,33882.0,0.24509019]
[1625588469504,0.7381827,33883.0,33882.0,0.24509019]
[1625588469985,1.06950776,33883.0,33882.0,0.24509019]
[1625588470105,1.08329347,33883.0,33882.0,0.24509019]
[1625588470226,0.42014355,33883.0,33882.0,0.24509019]
[1625588470348,0.40635784,33883.0,33882.0,0.24509019]
[1625588470466,0.24057544,33883.0,33882.0,0.24509019]
[1625588472813,0.24057544,33883.0,33882.0,0.41801934]
[1625588473296,0.24057544,33883.0,33882.0,0.76387563]
[1625588473776,0.24057544,33883.0,33882.0,1.10976124]
[1625588474561,0.24057544,33883.0,33882.0,0.76390495]
[1625588475700,0.24057544,33885.0,33882.0,0.76390495]
[1625588475820,0.82626826,33887.0,33882.0,0.76390495]
[1625588475943,0.82626826,33887.0,33884.0,0.51896305]
[1625588475947,0.08293577,33887.0,33884.0,0.51896305]
[1625588476183,0.99340834,33890.0,33886.0,0.51893281]
[1625588476184,0.33146538,33890.0,33886.0,0.51893281]
[1625588476423,0.82859985,33891.0,33887.0,0.86487832]
[1625588476662,0.33148461,33891.0,33888.0,0.64398915]
[1625588476901,0.82828676,33892.0,33890.0,0.72172632]
[1625588477082,0.33137679,33892.0,33890.0,0.72172632]
[1625588477443,0.33137679,33892.0,33891.0,0.00450403]
[1625588477803,0.33155442,33893.0,33891.0,0.00450403]
[1625588478103,0.99402959,33895.0,33891.0,0.00450403]
[1625588478104,0.49747766,33895.0,33891.0,0.52350526]
[1625588478224,0.49747766,33895.0,33893.0,4.462]
[1625588478345,0.49735938,33896.0,33893.0,4.462]
[1625588478703,0.49735938,33896.0,33894.0,0.00450363]
[1625588478827,0.49680449,33895.0,33894.0,0.00450363]
[1625588478944,0.49680449,33895.0,33894.0,0.24507907]
[1625588479067,0.49681524,33896.0,33894.0,0.24057544]
[1625588479305,0.49679112,33897.0,33894.0,0.24507766]
[1625588479545,0.49633495,33896.0,33895.0,0.0045023]
[1625588479664,0.49633495,33896.0,33895.0,0.2214723]
[1625588479785,0.495974,33897.0,33895.0,0.2214723]
[1625588480144,0.495974,33897.0,33896.0,0.00450234]
[1625588480925,0.495974,33897.0,33896.0,0.48115088]
[1625588481286,0.49331726,33898.0,33896.0,0.48115088]
[1625588483209,0.49188577,33899.0,33896.0,0.48115088]
[1625588483688,0.49164395,33898.0,33896.0,0.48115088]
[1625588484172,1.04012406,33900.0,33896.0,1.00054573]
[1625588484173,0.491669,33899.0,33896.0,1.00054573]
[1625588485011,0.49095049,33900.0,33896.0,1.24112117]
[1625588485251,0.49090776,33899.0,33896.0,1.24112117]
[1625588485497,0.49098541,33900.0,33896.0,1.24112117]
[1625588485673,0.49098541,33900.0,33897.0,0.5195113]
[1625588486275,0.49104356,33899.0,33897.0,0.5195113]
[1625588486515,0.49100327,33900.0,33897.0,0.5195113]
[1625588486757,1.14555708,33903.0,33899.0,1.55836848]
[1625588486758,0.49133258,33903.0,33899.0,1.55836848]
[1625588486997,0.49150617,33904.0,33901.0,0.51945453]
[1625588487115,0.49150617,33904.0,33902.0,0.48115088]
[1625588487235,0.49150617,33904.0,33902.0,1.24758213]
[1625588487597,1.14622438,33907.0,33903.0,0.51968598]
[1625588487598,0.49240174,33905.0,33903.0,0.51968598]
[1625588487837,0.49189004,33906.0,33903.0,0.51968598]
[1625588488259,0.49232428,33905.0,33902.0,1.24721256]
[1625588488743,0.49248253,33906.0,33902.0,1.24721256]
[1625588488979,0.49247312,33905.0,33902.0,1.24721256]
[1625588489099,0.49247312,33905.0,33904.0,0.24057544]
[1625588489460,0.49316067,33907.0,33904.0,0.75989564]
[1625588489701,0.49302225,33908.0,33904.0,0.75989564]
[1625588489940,0.49338784,33909.0,33904.0,0.75989564]
[1625588490483,0.4936083,33910.0,33906.0,0.51889999]
[1625588490844,0.49301178,33911.0,33906.0,0.51889999]
[1625588491084,0.49301178,33911.0,33910.0,5.45965088]
[1625588491205,0.98705211,33912.0,33910.0,5.45965088]
[1625588491206,0.49313451,33912.0,33910.0,5.78064088]
[1625588491564,1.15042809,33915.0,33910.0,5.78064088]
[1625588491685,0.9851259,33915.0,33910.0,5.78064088]
[1625588491928,1.15049432,33918.0,33910.0,5.78064088]
[1625588492409,1.15265599,33917.0,33910.0,5.78064088]
[1625588492887,1.15336921,33918.0,33910.0,5.78064088]
[1625588493066,1.15336921,33918.0,33917.0,0.72172632]
[1625588493186,1.15336921,33918.0,33917.0,1.01463632]
[1625588493548,1.64801755,33928.0,33917.0,1.01463632]
[1625588493549,1.20913934,33919.0,33917.0,1.01463632]
[1625588493669,1.15213934,33919.0,33917.0,1.01463632]
[1625588493789,1.20913934,33919.0,33917.0,1.01463632]
[1625588494815,1.20913934,33919.0,33917.0,0.72172632]
[1625588495054,1.14768406,33918.0,33917.0,0.72172632]
[1625588495170,1.20468406,33918.0,33917.0,0.72172632]
[1625588495292,1.14768406,33918.0,33917.0,0.72172632]
[1625588495710,1.14451197,33919.0,33917.0,0.72172632]
[1625588495831,1.14451197,33919.0,33917.0,0.96080632]
[1625588496070,0.057,33919.0,33917.0,0.96080632]
[1625588496672,1.20115642,33919.0,33917.0,0.96080632]
[1625588497697,0.057,33919.0,33917.0,0.96080632]
[1625588497817,0.057,33919.0,33917.0,0.72172632]
[1625588498056,1.20147052,33919.0,33917.0,0.72172632]
[1625588498176,1.20147052,33919.0,33910.0,0.24057544]
[1625588498298,2.4526692,33918.0,33910.0,0.24057544]
[1625588498416,4.8646,33914.0,33910.0,0.24057544]
[1625588498538,1.20106913,33913.0,33910.0,0.24057544]
[1625588499019,1.14450493,33912.0,33910.0,0.24057544]
[1625588499140,0.53815088,33911.0,33910.0,0.24057544]
[1625588500761,0.53815088,33911.0,33905.0,0.24057544]
[1625588501005,1.14506609,33910.0,33905.0,0.24057544]
[1625588501125,0.057,33909.0,33905.0,0.24057544]
[1625588501246,0.64157544,33906.0,33905.0,0.24057544]
[1625588501724,0.64157544,33906.0,33899.0,0.24057544]
[1625588502930,0.29757544,33906.0,33899.0,0.24057544]
[1625588503170,0.48115088,33906.0,33905.0,0.24057544]
[1625588503289,0.48115088,33906.0,33905.0,0.50227544]
[1625588503831,0.53815088,33906.0,33905.0,0.50227544]
[1625588504372,0.53815088,33906.0,33905.0,0.24057544]
[1625588504791,0.53815088,33906.0,33899.0,0.24057544]
[1625588505213,0.24057544,33900.0,33899.0,0.24057544]
[1625588505575,0.29757544,33900.0,33899.0,0.24057544]
[1625588505696,0.57183544,33900.0,33899.0,0.24057544]
[1625588506896,0.51483544,33900.0,33899.0,0.24057544]
[1625588507139,0.24057544,33900.0,33899.0,0.24057544]
[1625588508220,0.057,33905.0,33899.0,0.24057544]
[1625588509238,0.24057544,33900.0,33899.0,0.24057544]
[1625588509359,0.29757544,33900.0,33899.0,0.24057544]
[1625588509477,0.24057544,33900.0,33899.0,0.24057544]
[1625588510441,0.057,33902.0,33899.0,0.24057544]
[1625588510681,0.48115088,33906.0,33899.0,0.56460817]
[1625588510801,0.057,33905.0,33899.0,0.56460817]
[1625588510921,0.48115088,33906.0,33899.0,0.56010544]
[1625588511102,0.48115088,33906.0,33900.0,0.00450246]
[1625588511222,0.48115088,33906.0,33905.0,0.24057544]
[1625588515244,0.53815088,33906.0,33905.0,0.24057544]
[1625588515606,0.48115088,33906.0,33905.0,0.24057544]
[1625588517109,0.53815088,33906.0,33905.0,0.24057544]
[1625588518130,0.48115088,33906.0,33905.0,0.24057544]
[1625588518371,0.53815088,33906.0,33905.0,0.24057544]
[1625588518851,0.48115088,33906.0,33905.0,0.24057544]
[1625588519333,0.057,33910.0,33905.0,0.24057544]
[1625588521434,0.057,33910.0,33909.0,0.24057544]
[1625588522035,0.71397665,33910.0,33909.0,0.24057544]
[1625588523298,0.89763212,33911.0,33909.0,0.24057544]
[1625588523425,0.65705668,33911.0,33909.0,0.80995088]
[1625588523659,0.98550291,33912.0,33909.0,0.80995088]
[1625588523660,0.65766496,33912.0,33909.0,0.80995088]
[1625588523900,0.98641525,33913.0,33909.0,0.80995088]
[1625588523901,0.6578019,33913.0,33909.0,0.80995088]
[1625588524141,0.65804345,33914.0,33910.0,0.00449583]
[1625588524380,0.057,33913.0,33910.0,0.00449583]
[1625588524500,0.057,33913.0,33909.0,0.80995088]
[1625588524627,0.71501779,33913.0,33909.0,0.80995088]
[1625588525288,0.71501779,33913.0,33910.0,0.00449583]
[1625588525408,0.71501779,33913.0,33912.0,0.24057544]
[1625588526671,0.057,33913.0,33912.0,0.24057544]
[1625588527514,0.71390126,33913.0,33912.0,0.24057544]
[1625588528654,0.057,33913.0,33912.0,0.24057544]
[1625588528773,0.98528895,33915.0,33912.0,0.24057544]
[1625588529015,0.98740056,33921.0,33912.0,0.24507034]
[1625588529256,0.98820332,33924.0,33913.0,1.04064306]
[1625588529496,0.98828474,33926.0,33924.0,4.1884]
[1625588529617,0.98828474,33926.0,33924.0,4.45653]
[1625588529737,0.98969774,33928.0,33924.0,4.45653]
[1625588529976,1.15461988,33929.0,33924.0,4.45653]
[1625588529977,0.99026849,33929.0,33924.0,4.45653]
[1625588530095,0.99026849,33929.0,33925.0,0.00449359]
[1625588530216,0.99062327,33930.0,33925.0,0.00449359]
[1625588530456,0.99066903,33931.0,33925.0,0.00449359]
[1625588530575,0.99066903,33931.0,33924.0,4.45653]
[1625588530699,0.9911566,33932.0,33924.0,4.45653]
[1625588531063,0.9911978,33933.0,33924.0,4.45653]
[1625588531421,0.99029166,33934.0,33924.0,4.45653]
[1625588531540,0.99029166,33934.0,33933.0,0.48115088]
[1625588531661,0.99029166,33934.0,33933.0,0.80476088]
[1625588531841,0.99110635,33935.0,33933.0,0.80476088]
[1625588533281,1.15615743,33936.0,33933.0,0.48115088]
[1625588533282,0.99110673,33934.0,33933.0,0.48115088]
[1625588533523,1.23168217,33934.0,33933.0,0.48115088]
[1625588534722,2.38671575,33934.0,33933.0,0.48115088]
[1625588534844,2.62191575,33934.0,33933.0,0.48115088]
[1625588534963,2.62191575,33934.0,33923.0,0.24057544]
[1625588534964,3.94094706,33934.0,33923.0,0.24057544]
[1625588535204,0.98821048,33926.0,33923.0,0.24057544]
[1625588535323,0.98821048,33926.0,33915.0,1.0121]
[1625588535444,1.30037048,33926.0,33915.0,0.9551]
[1625588535567,0.24057544,33919.0,33918.0,0.24057544]
[1625588535684,4.70209544,33919.0,33918.0,0.24057544]
[1625588536043,0.58259544,33919.0,33918.0,0.24057544]
[1625588536523,0.34202,33919.0,33918.0,0.24057544]
[1625588536946,0.24057544,33923.0,33918.0,0.24057544]
[1625588537545,0.24057544,33923.0,33922.0,0.24057544]
[1625588537906,4.1182,33927.0,33922.0,0.24057544]
[1625588539589,4.1182,33927.0,33926.0,0.24057544]
[1625588539711,0.99469747,33929.0,33926.0,0.24057544]
[1625588539949,0.99527709,33930.0,33926.0,0.24057544]
[1625588540189,0.99508751,33929.0,33926.0,0.24057544]
[1625588540549,0.99473739,33928.0,33926.0,0.24057544]
[1625588540675,1.27390739,33928.0,33926.0,0.24057544]
[1625588541331,0.99503952,33927.0,33926.0,0.24057544]
[1625588543617,3.71754641,33927.0,33926.0,0.24057544]
[1625588544159,2.39386067,33927.0,33926.0,0.24057544]
[1625588545118,1.23561496,33927.0,33926.0,0.24057544]
[1625588545843,0.24057544,33927.0,33926.0,0.24057544]
[1625588546202,0.99028131,33928.0,33926.0,0.24057544]
[1625588546323,0.9918188,33933.0,33926.0,0.50920544]
[1625588547408,0.24057544,33934.0,33926.0,0.50920544]
[1625588547409,1.23313077,33934.0,33926.0,0.50920544]
[1625588547642,1.23313077,33934.0,33933.0,0.48115088]
[1625588548062,0.24057544,33934.0,33933.0,0.48115088]
[1625588556719,0.46642544,33934.0,33933.0,0.48115088]
[1625588556959,0.46642544,33934.0,33926.0,0.24057544]
[1625588557201,0.99116899,33931.0,33926.0,0.24057544]
[1625588557379,0.48021391,33934.0,33926.0,0.24057544]
[1625588557380,0.99126643,33932.0,33926.0,0.24057544]
[1625588557623,0.99052808,33933.0,33926.0,0.24057544]
[1625588557863,0.24057544,33927.0,33926.0,0.24057544]
[1625588557981,0.49288544,33927.0,33926.0,0.24057544]
[1625588558222,0.49288544,33927.0,33926.0,0.24506843]
[1625588559004,0.49288544,33927.0,33926.0,0.24057544]
[1625588559845,0.49288544,33927.0,33926.0,0.24507101]
[1625588560087,1.4577476,33934.0,33926.0,0.24507101]
[1625588560325,0.01378226,33933.0,33927.0,0.0044954]
[1625588561827,0.01378226,33933.0,33932.0,0.24057544]
[1625588561944,0.24057544,33934.0,33932.0,0.24057544]
[1625588562730,0.24057544,33936.0,33932.0,0.24057544]
[1625588562848,0.99440348,33939.0,33933.0,0.00449468]
[1625588563328,0.01378049,33938.0,33933.0,0.00449468]
[1625588563572,0.99502932,33940.0,33933.0,0.00449468]
[1625588563688,0.99568416,33942.0,33933.0,0.00449468]
[1625588563810,0.99568416,33942.0,33941.0,0.48115088]
[1625588563930,0.99579682,33943.0,33941.0,0.73072088]
[1625588564169,1.00909286,33942.0,33941.0,0.73072088]
[1625588564411,0.01377975,33942.0,33941.0,0.73072088]
[1625588564649,1.00912003,33942.0,33941.0,0.73072088]
[1625588565011,0.01377975,33942.0,33941.0,0.73072088]
[1625588565248,0.99545828,33943.0,33941.0,0.73072088]
[1625588565368,2.15652928,33944.0,33941.0,0.73072088]
[1625588565489,0.99532659,33944.0,33941.0,0.73072088]
[1625588565788,0.01377911,33943.0,33941.0,0.73072088]
[1625588566269,0.99539501,33942.0,33941.0,0.73072088]
[1625588566868,1.00917493,33942.0,33941.0,0.73072088]
[1625588568009,0.01377992,33942.0,33941.0,0.73072088]
[1625588568128,0.99519234,33943.0,33941.0,0.73072088]
[1625588568611,1.23577964,33945.0,33941.0,0.73072088]
[1625588568791,0.99508382,33944.0,33941.0,0.73072088]
[1625588569331,1.23570093,33945.0,33941.0,0.73072088]
[1625588569753,0.99557421,33944.0,33941.0,0.73072088]
[1625588570236,0.99557421,33944.0,33941.0,0.48115088]
[1625588570474,0.30001,33944.0,33941.0,0.48115088]
[1625588570593,0.01377991,33943.0,33941.0,0.48115088]
[1625588570716,0.99448191,33942.0,33941.0,0.48115088]
[1625588571195,1.00826202,33942.0,33941.0,0.48115088]
[1625588571316,2.16784024,33942.0,33941.0,0.48115088]
[1625588571437,2.16784024,33942.0,33936.0,0.24057544]
[1625588571556,3.49285774,33942.0,33936.0,0.24057544]
[1625588571797,0.99386916,33938.0,33936.0,0.24057544]
[1625588571977,0.54329544,33937.0,33936.0,0.24057544]
[1625588572218,1.53680422,33937.0,33936.0,0.24057544]
[1625588572457,5.76890422,33937.0,33936.0,0.24057544]
[1625588572577,5.78268576,33937.0,33936.0,0.24057544]
[1625588572702,6.94118496,33937.0,33936.0,0.24057544]
[1625588572939,2.70908496,33937.0,33936.0,0.24057544]
[1625588573179,1.55058576,33937.0,33936.0,0.24057544]
[1625588573781,2.71013645,33937.0,33936.0,0.24057544]
[1625588573902,2.69635491,33937.0,33936.0,0.24057544]
[1625588574025,0.99461082,33938.0,33936.0,0.24057544]
[1625588574263,0.9947554,33939.0,33936.0,0.24057544]
[1625588575886,1.23533084,33939.0,33938.0,0.24057544]
[1625588576247,1.24911189,33939.0,33938.0,0.24057544]
[1625588577448,6.31711189,33939.0,33938.0,0.24057544]
[1625588578172,7.48122262,33939.0,33938.0,0.24057544]
[1625588580091,2.41322262,33939.0,33938.0,0.24057544]
[1625588580333,1.23533084,33939.0,33938.0,0.24057544]
[1625588581305,2.39986983,33939.0,33938.0,0.24057544]
[1625588581422,2.76265014,33939.0,33938.0,0.24057544]
[1625588581542,4.09181211,33939.0,33938.0,0.24057544]
[1625588581778,4.5899664,33939.0,33938.0,0.24057544]
[1625588581895,4.83054184,33939.0,33932.0,0.48115088]
[1625588582136,1.49400365,33933.0,33932.0,0.48115088]
[1625588582856,2.65429054,33933.0,33932.0,0.48115088]
[1625588583997,2.89486598,33933.0,33932.0,0.48115088]
[1625588587669,2.65429054,33933.0,33932.0,0.48115088]
[1625588588029,1.49400365,33933.0,33932.0,0.48564199]
[1625588588269,1.49400365,33933.0,33932.0,1.00502082]
[1625588588270,0.49805654,33933.0,33932.0,1.00502082]
[1625588588511,0.49805654,33933.0,33932.0,2.04375963]
[1625588588749,0.49805654,33933.0,33932.0,2.73624878]
[1625588588989,0.49805654,33933.0,33932.0,2.02796997]
[1625588589231,0.49870875,33935.0,33932.0,4.27842937]
[1625588589473,0.66488961,33936.0,33934.0,2.25093774]
[1625588589474,0.4988815,33936.0,33934.0,2.25093774]
[1625588589711,0.49873128,33937.0,33935.0,2.25051077]
[1625588589834,0.99729636,33939.0,33935.0,2.25051077]
[1625588589835,1.16383519,33940.0,33935.0,2.25500174]
[1625588589836,0.52058247,33940.0,33935.0,2.25500174]
[1625588589954,0.52058247,33940.0,33939.0,0.72172632]
[1625588589955,0.01998247,33940.0,33939.0,0.72172632]
[1625588590077,1.49631203,33945.0,33939.0,0.72172632]
[1625588590078,1.49631203,33945.0,33939.0,1.45512632]
[1625588590080,1.33093918,33945.0,33939.0,1.45512632]
[1625588590315,2.41765246,33966.0,33941.0,1.38470012]
[1625588590316,1.33295995,33951.0,33941.0,1.38470012]
[1625588590555,1.33360405,33953.0,33943.0,1.38466236]
[1625588590793,1.33360405,33953.0,33940.0,1.56223546]
[1625588590794,1.0,33996.0,33939.0,1.45512632]
[1625588590795,1.0,33996.0,33944.0,1.38458118]
[1625588590796,1.33390763,33954.0,33944.0,1.38458118]
[1625588591034,0.01378797,33952.0,33944.0,1.38907099]
[1625588591154,0.01378797,33952.0,33951.0,3.9209]
[1625588591274,0.01378757,33953.0,33951.0,3.9209]
[1625588591395,0.01378757,33953.0,33951.0,0.29104]
[1625588591874,1.33206761,33956.0,33951.0,0.29104]
[1625588591998,1.33206761,33956.0,33955.0,0.72172632]
[1625588592115,1.33220318,33957.0,33955.0,0.72172632]
[1625588592295,1.33152631,33956.0,33955.0,0.72172632]
[1625588593136,1.34531528,33956.0,33955.0,0.72172632]
[1625588593376,1.33152631,33956.0,33955.0,0.72172632]
[1625588593617,1.34531552,33956.0,33955.0,0.72172632]
[1625588593737,1.34531552,33956.0,33955.0,0.24057544]
[1625588593856,1.33152631,33956.0,33955.0,0.24057544]
[1625588593981,1.57210175,33956.0,33955.0,0.24057544]
[1625588594460,3.08779955,33956.0,33955.0,0.24057544]
[1625588595239,3.08779955,33956.0,33952.0,0.24057544]